Workbook

Sheet Program Information
D30: Students served per cohort | E30: 500 | G30: Program length (years) | J30: 3
D32: Year 2 retention rate | E32: 0.6 | G32: Year 3 retention rate | J32: 0.5
D34: Summer enrollment rate | E34: 0.2

Sheet Tuition
D7: Students served | E7: ='Program Information'!E30 -> 500
D9: Avg. tuition coverage per semester ($) | E9: 1250
D11: Fees covered? | E11: Yes
D13: Average semester fees ($) | E13: 250
D15: Summer coverage offered? | E15: Yes
D17: Summer enrollment rate | E17: ='Program Information'!E34 -> 0.2
D19: Avg. summer tuition coverage ($) | E19: 1250
D21: First-year total tuition coverage cost | E21: =IF(FeesCovered="Yes",IF(SummerCoverage2="Yes",((StudentsServed2*Tuition)*2)+(SummerEnroll*StudentsServed2*SummerTuition)+((StudentsServed2*Fees)*2)+(StudentsServed2*SummerEnroll*Fees),((StudentsServed2*Tuition)*2)+((StudentsServed2*Fees)*2)),IF(SummerCoverage2="Yes",((StudentsServed2*Tuition)*2)+(SummerEnroll*StudentsServed2*SummerTuition),((StudentsServed2*Tuition)*2))) -> 1650000
D23: Year 2 retention rate | E23: =IF(OR('Program Information'!J30=2,'Program Information'!J30=3),'Program Information'!E32,"1-Year Program") -> 0.6
D25: Year 3 retention rate | E25: =IF('Program Information'!J30=3,'Program Information'!J32,IF('Program Information'!J30=2,"2-Year Program","1-Year Program")) -> 0.5
D27: ="Total tuition coverage cost ("&'Program Information'!J30&IF('Program Information'!J30=1," year)"," years)") -> Total tuition coverage cost (3 years) | E27: ='Annual Costs'!B6 -> 3465000

Sheet Textbook
D7: Students served | E7: ='Program Information'!E30 -> 500
D9: Textbook stipend per semester ($) | E9: 400
D11: Summer textbook coverage offered? | E11: Yes
D13: Summer enrollment rate | E13: ='Program Information'!E34 -> 0.2
D15: Summer textbook stipend ($) | E15: 200
D17: First-year total textbook stipend cost | E17: =IF(SummerCoverage="Yes",((StudentsServed*SemBookCost)*2)+(SummerBookCost*StudentsServed*SummerEnrollText),(StudentsServed*SemBookCost*2)) -> 420000
D19: Year 2 retention rate | E19: =IF(OR('Program Information'!J30=2,'Program Information'!J30=3),'Program Information'!E32,"1-Year Program") -> 0.6
D21: Year 3 retention rate | E21: =IF('Program Information'!J30=3,'Program Information'!J32,IF('Program Information'!J30=2,"2-Year Program","1-Year Program")) -> 0.5
D23: ="Total textbook stipend cost ("&'Program Information'!J30&IF('Program Information'!J30=1," year)"," years)") -> Total textbook stipend cost (3 years) | E23: ='Annual Costs'!C6 -> 882000

Sheet Monthly
D6: Students served | E6: ='Program Information'!E30 -> 500
D8: Monthly incentive value ($) | E8: 50
D10: Monthly incentive take-up rate | E10: 0.7
D12: Monthly incentive cost | E12: =StudentsServed*PctIncentive*IncentiveValue -> 17500
D14: Summer incentive offered? | E14: Yes
D16: Summer enrollment rate | E16: ='Program Information'!E34 -> 0.2
D18: Summer incentive take-up rate | E18: 0.4
D20: First-year monthly incentive cost | E20: =IF(SummerCoverage="Yes",(StudentsServed*PctIncentive*IncentiveValue*8)+(StudentsServed*SummerEnrollMonth*SumPctIncentive*IncentiveValue*3),(StudentsServed*PctIncentive*IncentiveValue*8)) -> 146000
D22: Year 2 retention rate | E22: =IF(OR('Program Information'!J30=2,'Program Information'!J30=3),'Program Information'!E32,"1-Year Program") -> 0.6
D24: Year 3 retention rate | E24: =IF('Program Information'!J30=3,'Program Information'!J32,IF('Program Information'!J30=2,"2-Year Program","1-Year Program")) -> 0.5
D26: ="Total monthly incentive cost ("&'Program Information'!J30&IF('Program Information'!J30=1," year)"," years)") -> Total monthly incentive cost (3 years) | E26: ='Annual Costs'!D6 -> 306600

Sheet Milestone
D7: Milestone # | E7: Description | F7: Milestone year | H7: Cost Estimate
D9: 1 | E9: (Fill in description) | F9: 1 | G9: Incentive ($) | H9: 0 | J9: Students served | K9: ='Program Information'!E30 -> 500
G11: Percentage completed | H11: 1 | J11: Year 2 retention rate | K11: =IF(OR('Program Information'!J30=2,'Program Information'!J30=3),'Program Information'!E32,"1-Year Program") -> 0.6
G13: Milestone #1 Cost | H13: =IF(OR(MlstnYr1=1,MlstnYr1="Annual"),MlstnStudents*Mlstn1Cost*Mlstn1Pct,IF(AND(MlstnYr1=2,'Program Information'!J30>=2),MlstnStudents*Yr2RetRate*Mlstn1Cost*Mlstn1Pct,IF(AND(MlstnYr1=3,'Program Information'!J30=3),MlstnStudents*Yr3RetRate*Mlstn1Cost*Mlstn1Pct,"NA"))) -> 0 | J13: Year 3 retention rate | K13: =IF('Program Information'!J30=3,'Program Information'!J32,IF('Program Information'!J30=2,"2-Year Program","1-Year Program")) -> 0.5
D15: 2 | E15: (Fill in description) | F15: Annual | G15: Incentive ($) | H15: 0
G16: Percentage completed | H16: 1
G17: Milestone #2 Cost | H17: =IF(OR(MlstnYr2=1,MlstnYr2="Annual"),MlstnStudents*Mlstn2Cost*Mlstn2Pct,IF(AND(MlstnYr2=2,'Program Information'!J30>=2),MlstnStudents*Yr2RetRate*Mlstn2Cost*Mlstn2Pct,IF(AND(MlstnYr2=3,'Program Information'!J30=3),MlstnStudents*Yr3RetRate*Mlstn2Cost*Mlstn2Pct,"NA"))) -> 0
D19: 3 | E19: (Fill in description) | F19: 2 | G19: Incentive ($) | H19: 0
G20: Percentage completed | H20: 1
G21: Milestone #3 Cost | H21: =IF(OR(MlstnYr3=1,MlstnYr3="Annual"),MlstnStudents*Mlstn3Cost*Mlstn3Pct,IF(AND(MlstnYr3=2,'Program Information'!J30>=2),MlstnStudents*Yr2RetRate*Mlstn3Cost*Mlstn3Pct,IF(AND(MlstnYr3=3,'Program Information'!J30=3),MlstnStudents*Yr3RetRate*Mlstn3Cost*Mlstn3Pct,"NA"))) -> 0
D23: 4 | E23: (Fill in description) | F23: 3 | G23: Incentive ($) | H23: 0
G24: Percentage completed | H24: 1
G25: Milestone #4 Cost | H25: =IF(OR(MlstnYr4=1,MlstnYr4="Annual"),MlstnStudents*Mlstn4Cost*Mlstn4Pct,IF(AND(MlstnYr4=2,'Program Information'!J30>=2),MlstnStudents*Yr2RetRate*Mlstn4Cost*Mlstn4Pct,IF(AND(MlstnYr4=3,'Program Information'!J30=3),MlstnStudents*Yr3RetRate*Mlstn4Cost*Mlstn4Pct,"NA"))) -> 0
D27: 5 | E27: (Fill in description) | F27: 3 | G27: Incentive ($) | H27: 0
G28: Percentage completed | H28: 1
G29: Milestone #5 Cost | H29: =IF(OR(MlstnYr5=1,MlstnYr5="Annual"),MlstnStudents*Mlstn5Cost*Mlstn5Pct,IF(AND(MlstnYr5=2,'Program Information'!J30>=2),MlstnStudents*Yr2RetRate*Mlstn5Cost*Mlstn5Pct,IF(AND(MlstnYr5=3,'Program Information'!J30=3),MlstnStudents*Yr3RetRate*Mlstn5Cost*Mlstn5Pct,"NA"))) -> 0
F31: First-year milestone incentive cost | H31: =SUM(IF(OR(MlstnYr1=1,MlstnYr1="Annual"),Mlstn1Total,0),IF(OR(MlstnYr2=1,MlstnYr2="Annual"),Mlstn2Total,0),IF(OR(MlstnYr3=1,MlstnYr3="Annual"),Mlstn3Total,0),IF(OR(MlstnYr4=1,MlstnYr4="Annual"),Mlstn4Total,0),IF(OR(MlstnYr5=1,MlstnYr5="Annual"),Mlstn5Total,0)) -> 0
F33: ="Total milestone incentive cost ("&'Program Information'!J30&IF('Program Information'!J30=1," year)"," years)") -> Total milestone incentive cost (3 years) | H33: ='Annual Costs'!E6 -> 0

Sheet Success Coaching-Advising
D6: Students served | E6: ='Program Information'!E30 -> 500
D8: Coach/adviser-to-student ratio | E8: 1 : 200
D10: Avg. coach/adviser salary | E10: 40000
D12: Avg. coach/adviser emp. benefit pct. | E12: 0.2
D14: First-year coaches/advisers required | E14: =ROUNDUP(StudentsServed/VALUE(RIGHT(CoachRatio,3)),0) -> 3
D16: First-year coaches/advisers cost | E16: =FirstYrCoach*(CoachSalary+(CoachSalary*CoachBenefit)) -> 144000
D18: Year 2 retention rate | E18: =IF(OR('Program Information'!J30=2,'Program Information'!J30=3),'Program Information'!E32,"1-Year Program") -> 0.6
D20: Second-year coaches/advisers required | E20: =IF('Program Information'!J30=1,"1-Year Program",ROUNDUP((StudentsServed*Yr2RetRt)/VALUE(RIGHT(CoachRatio,3)),0)) -> 2
D22: Second-year coaches/advisers cost | E22: =IF('Program Information'!J30=1,"1-Year Program",SecondYrCoach*(CoachSalary+(CoachSalary*CoachBenefit))) -> 96000
D24: Year 3 retention rate | E24: =IF('Program Information'!J30=3,'Program Information'!J32,IF('Program Information'!J30=2,"2-Year Program","1-Year Program")) -> 0.5
D26: Third-year coaches/advisers required | E26: =IF('Program Information'!J30=1,"1-Year Program",IF('Program Information'!J30=2,"2-Year Program",ROUNDUP((StudentsServed*Yr3RetRt)/VALUE(RIGHT(CoachRatio,3)),0))) -> 2
D28: Third-year coaches/advisers cost | E28: =IF('Program Information'!J30=1,"1-Year Program",IF('Program Information'!J30=2,"2-Year Program",ThirdYrCoach*(CoachSalary+(CoachSalary*CoachBenefit)))) -> 96000
D30: ="Total coaches/advisers cost ("&'Program Information'!J30&IF('Program Information'!J30=1," year)"," years)") -> Total coaches/advisers cost (3 years) | E30: ='Annual Costs'!F6 -> 336000

Sheet Other
D7: Cost # | E7: Description | F7: Cost Year | H7: Cost Estimate
D9: 1 | E9: (Fill in description) | F9: Annual | G9: Cost type | H9: Per Student | J9: Students served | K9: ='Program Information'!E30 -> 500
G11: Cost amount | H11: 0 | J11: Year 2 retention rate | K11: =IF(OR('Program Information'!J30=2,'Program Information'!J30=3),'Program Information'!E32,"1-Year Program") -> 0.6
G13: Other Cost #1 | H13: =IF(Other1Type="Total",IF(OR(OtherYr1=1,OtherYr1="Annual"),Other1Amt,IF(AND(OtherYr1=2,'Program Information'!J30>=2),Other1Amt,IF(AND(OtherYr1=3,'Program Information'!J30=3),Other1Amt,"N/A"))),IF(OR(OtherYr1=1,OtherYr1="Annual"),(Other1Amt*OtherStudents),IF(AND(OtherYr1=2,'Program Information'!J30>=2),(OtherStudents*Yr2RetRate*Other1Amt),IF(AND(OtherYr1=3,'Program Information'!J30=3),(OtherStudents*Yr3RetRate*Other1Amt),"N/A")))) -> 0 | J13: Year 3 retention rate | K13: =IF('Program Information'!J30=3,'Program Information'!J32,IF('Program Information'!J30=2,"2-Year Program","1-Year Program")) -> 0.5
D15: 2 | E15: (Fill in description) | F15: Annual | G15: Cost type | H15: Total
G16: Cost amount | H16: 0
G17: Other Cost #2 | H17: =IF(Other2Type="Total",IF(OR(OtherYr2=1,OtherYr2="Annual"),Other2Cost,IF(AND(OtherYr2=2,'Program Information'!J30>=2),Other2Cost,IF(AND(OtherYr2=3,'Program Information'!J30=3),Other2Cost,"N/A"))),IF(OR(OtherYr2=1,OtherYr2="Annual"),(Other2Cost*OtherStudents),IF(AND(OtherYr2=2,'Program Information'!J30>=2),(OtherStudents*Yr2RetRate*Other2Cost),IF(AND(OtherYr2=3,'Program Information'!J30=3),(OtherStudents*Yr3RetRate*Other2Cost),"N/A")))) -> 0
D19: 3 | E19: (Fill in description) | F19: 2 | G19: Cost type | H19: Total
G20: Cost amount | H20: 0
G21: Other Cost #3 | H21: =IF(Other3Type="Total",IF(OR(OtherYr3=1,OtherYr3="Annual"),Other3Cost,IF(AND(OtherYr3=2,'Program Information'!J30>=2),Other3Cost,IF(AND(OtherYr3=3,'Program Information'!J30=3),Other3Cost,"N/A"))),IF(OR(OtherYr3=1,OtherYr3="Annual"),(Other3Cost*OtherStudents),IF(AND(OtherYr3=2,'Program Information'!J30>=2),(OtherStudents*Yr2RetRate*Other3Cost),IF(AND(OtherYr3=3,'Program Information'!J30=3),(OtherStudents*Yr3RetRate*Other3Cost),"N/A")))) -> 0
D23: 4 | E23: (Fill in description) | F23: 3 | G23: Cost type | H23: Per Student
G24: Cost amount | H24: 0
G25: Other Cost #4 | H25: =IF(Other4Type="Total",IF(OR(OtherYr4=1,OtherYr4="Annual"),Other4Cost,IF(AND(OtherYr4=2,'Program Information'!J30>=2),Other4Cost,IF(AND(OtherYr4=3,'Program Information'!J30=3),Other4Cost,"N/A"))),IF(OR(OtherYr4=1,OtherYr4="Annual"),(Other4Cost*OtherStudents),IF(AND(OtherYr4=2,'Program Information'!J30>=2),(OtherStudents*Yr2RetRate*Other4Cost),IF(AND(OtherYr4=3,'Program Information'!J30=3),(OtherStudents*Yr3RetRate*Other4Cost),"N/A")))) -> 0
D27: 5 | E27: (Fill in description) | F27: 3 | G27: Cost type | H27: Total
G28: Cost amount | H28: 0
G29: Other Cost #5 | H29: =IF(Other5Type="Total",IF(OR(OtherYr5=1,OtherYr5="Annual"),Other5Cost,IF(AND(OtherYr5=2,'Program Information'!J30>=2),Other5Cost,IF(AND(OtherYr5=3,'Program Information'!J30=3),Other5Cost,"N/A"))),IF(OR(OtherYr5=1,OtherYr5="Annual"),(Other5Cost*OtherStudents),IF(AND(OtherYr5=2,'Program Information'!J30>=2),(OtherStudents*Yr2RetRate*Other5Cost),IF(AND(OtherYr5=3,'Program Information'!J30=3),(OtherStudents*Yr3RetRate*Other5Cost),"N/A")))) -> 0
F31: First-year other cost | H31: =SUM(IF(OR(OtherYr1=1,OtherYr1="Annual"),Other1Total,0),IF(OR(OtherYr2=1,OtherYr2="Annual"),Other2Total,0),IF(OR(OtherYr3=1,OtherYr3="Annual"),Other3Total,0),IF(OR(OtherYr4=1,OtherYr4="Annual"),Other4Total,0),IF(OR(OtherYr5=1,OtherYr5="Annual"),Other5Total,0)) -> 0
F33: ="Total other cost ("&'Program Information'!J30&IF('Program Information'!J30=1," year)"," years)") -> Total other cost (3 years) | H33: ='Annual Costs'!G6 -> 0

Sheet Summary Report
J3: Change Students Served
D6: Students served | E6: ='Program Information'!E30 -> 500 | G6: Year 2 retention rate | H6: =IF(OR('Program Information'!J30=2,'Program Information'!J30=3),'Program Information'!E32,"1-Year Program") -> 0.6
G8: Year 3 retention rate | H8: =IF('Program Information'!J30=3,'Program Information'!J32,IF('Program Information'!J30=2,"2-Year Program","1-Year Program")) -> 0.5
D10: Program Costs | J10: Students served per cohort | K10: 500
D12: First Year Costs | G12: Second Year Costs
D14: Tuition coverage | E14: =IF(Links!B1=TRUE,'Annual Costs'!B3,"Not Selected") -> 1650000 | G14: Tuition coverage | H14: =IF(Links!B1=TRUE,IF('Program Information'!J30=1,"1-Year Program",'Annual Costs'!B4),"Not Selected") -> 990000
D16: Textbook stipend | E16: =IF(Links!B2=FALSE, "Not Selected",'Annual Costs'!C3) -> 420000 | G16: Textbook stipend | H16: =IF(Links!B2=TRUE,IF('Program Information'!J30=1,"1-Year Program",'Annual Costs'!C4),"Not Selected") -> 252000
D18: Monthly incentive | E18: =IF(Links!B3=FALSE, "Not Selected",'Annual Costs'!D3) -> 146000 | G18: Monthly incentive | H18: =IF(Links!B3=TRUE,IF('Program Information'!J30=1,"1-Year Program",'Annual Costs'!D4), "Not Selected") -> 87600
D20: Milestone incentive | E20: =IF(Links!B4=FALSE, "Not Selected", 'Annual Costs'!E3) -> 0 | G20: Milestone incentive | H20: =IF(Links!B4=TRUE, IF('Program Information'!J30=1,"1-Year Program",'Annual Costs'!E4), "Not Selected") -> 0
D22: Coach/adviser(s) | E22: =IF(Links!B5=FALSE, "Not Selected",'Annual Costs'!F3) -> 144000 | G22: Coach/adviser(s) | H22: =IF(Links!B5=TRUE,IF('Program Information'!J30=1,"1-Year Program",'Annual Costs'!F4), "Not Selected") -> 96000
D24: Other costs | E24: ='Annual Costs'!G3 -> 0 | G24: Other costs | H24: =IF('Program Information'!J30=1,"1-Year Program",'Annual Costs'!G4) -> 0
D26: First-year total | E26: =SUM(E14,E16,E18,E20,E22,E24) -> 2360000 | G26: Second-year total | H26: =IF('Program Information'!J30=1,"1-Year Program",SUM(H14,H16,H18,H20,H22,H24)) -> 1425600
D28: Third Year Costs | G28: Total Program Cost
D30: Tuition coverage | E30: =IF(Links!B1=TRUE,IF('Program Information'!J30=1,"1-Year Program",IF('Program Information'!J30=2,"2-Year Program",'Annual Costs'!B5)),"Not Selected") -> 825000 | G30: Tuition coverage | H30: =IF(Links!B1=TRUE,'Annual Costs'!B6,"Not Selected") -> 3465000
D32: Textbook stipend | E32: =IF(Links!B2=TRUE,IF('Program Information'!J30=1,"1-Year Program",IF('Program Information'!J30=2,"2-Year Program",'Annual Costs'!C5)), "Not Selected") -> 210000 | G32: Textbook stipend | H32: =IF(Links!B2=FALSE, "Not Selected",'Annual Costs'!C6) -> 882000
D34: Monthly incentive | E34: =IF(Links!B3=TRUE,IF('Program Information'!J30=1,"1-Year Program",IF('Program Information'!J30=2,"2-Year Program",'Annual Costs'!D5)), "Not Selected") -> 73000 | G34: Monthly incentive | H34: =IF(Links!B3=FALSE, "Not Selected",'Annual Costs'!D6) -> 306600
D36: Milestone incentive | E36: =IF(Links!B4=TRUE,IF('Program Information'!J30=1,"1-Year Program",IF('Program Information'!J30=2,"2-Year Program", 'Annual Costs'!E5)), "Not Selected") -> 0 | G36: Milestone incentive | H36: =IF(Links!B4=FALSE, "Not Selected", 'Annual Costs'!E6) -> 0
D38: Coach/adviser(s) | E38: =IF(Links!B5=TRUE,IF('Program Information'!J30=1,"1-Year Program",IF('Program Information'!J30=2,"2-Year Program",'Annual Costs'!F5)), "Not Selected") -> 96000 | G38: Coach/adviser(s) | H38: =IF(Links!B5=FALSE, "Not Selected",'Annual Costs'!F6) -> 336000
D40: Other costs | E40: =IF('Program Information'!J30=1,"1-Year Program",IF('Program Information'!J30=2,"2-Year Program",'Annual Costs'!G5)) -> 0 | G40: Other costs | H40: ='Annual Costs'!G6 -> 0
D42: Third-year total | E42: =IF('Program Information'!J30=1,"1-Year Program",IF('Program Information'!J30=2,"2-Year Program",SUM(E30,E32,E34,E36,E38,E40))) -> 1204000 | G42: Total program cost | H42: =SUM(H30,H32,H34,H36,H38,H40) -> 4989600
D44: Comments
D46: (Type comments here)

Sheet Annual Costs
B2: Tuition | C2: Textbook | D2: Monthly | E2: Milestone | F2: Coaching | G2: Other
A3: Year 1 | B3: =IF(FeesCovered="Yes",IF(SummerCoverage2="Yes",((StudentsServed2*Tuition)*2)+(SummerEnroll*StudentsServed2*SummerTuition)+((StudentsServed2*Fees)*2)+(StudentsServed2*SummerEnroll*Fees),((StudentsServed2*Tuition)*2)+((StudentsServed2*Fees)*2)),IF(SummerCoverage2="Yes",((StudentsServed2*Tuition)*2)+(SummerEnroll*StudentsServed2*SummerTuition),((StudentsServed2*Tuition)*2))) -> 1650000 | C3: =IF(Textbook!SummerCoverage="Yes",((Textbook!StudentsServed*SemBookCost)*2)+(SummerBookCost*Textbook!StudentsServed*SummerEnrollText),(Textbook!StudentsServed*SemBookCost*2)) -> 420000 | D3: =IF(Monthly!SummerCoverage="Yes",(Monthly!StudentsServed*PctIncentive*IncentiveValue*8)+(Monthly!StudentsServed*SummerEnrollMonth*SumPctIncentive*IncentiveValue*3),(Monthly!StudentsServed*PctIncentive*IncentiveValue*8)) -> 146000 | E3: =SUM(IF(OR(MlstnYr1=1,MlstnYr1="Annual"),Mlstn1Total,0),IF(OR(MlstnYr2=1,MlstnYr2="Annual"),Mlstn2Total,0),IF(OR(MlstnYr3=1,MlstnYr3="Annual"),Mlstn3Total,0),IF(OR(MlstnYr4=1,MlstnYr4="Annual"),Mlstn4Total,0),IF(OR(MlstnYr5=1,MlstnYr5="Annual"),Mlstn5Total,0)) -> 0 | F3: ='Success Coaching-Advising'!E16 -> 144000 | G3: =SUM(IF(OR(Other!OtherYr1=1,Other!OtherYr1="Annual"),Other!Other1Total,0),IF(OR(Other!OtherYr2=1,Other!OtherYr2="Annual"),Other!Other2Total,0),IF(OR(Other!OtherYr3=1,Other!OtherYr3="Annual"),Other!Other3Total,0),IF(OR(Other!OtherYr4=1,Other!OtherYr4="Annual"),Other!Other4Total,0),IF(OR(Other!OtherYr5=1,Other!OtherYr5="Annual"),Other!Other5Total,0)) -> 0
A4: Year 2 | B4: =IF(FeesCovered="Yes",IF(SummerCoverage2="Yes",(((StudentsServed2*Year2RetRate)*Tuition)*2)+(SummerEnroll*(StudentsServed2*Year2RetRate)*SummerTuition)+(((StudentsServed2*Year2RetRate)*Fees)*2)+((StudentsServed2*Year2RetRate)*SummerEnroll*Fees),(((StudentsServed2*Year2RetRate)*Tuition)*2)+(((StudentsServed2*Year2RetRate)*Fees)*2)),IF(SummerCoverage2="Yes",(((StudentsServed2*Year2RetRate)*Tuition)*2)+(SummerEnroll*(StudentsServed2*Year2RetRate)*SummerTuition),(((StudentsServed2*Year2RetRate)*Tuition)*2))) -> 990000 | C4: =IF(Textbook!SummerCoverage="Yes",(((Textbook!StudentsServed*Year2RetRate)*SemBookCost)*2)+(SummerBookCost*(Textbook!StudentsServed*Year2RetRate*SummerEnrollText)),((Textbook!StudentsServed*Year2RetRate)*SemBookCost*2)) -> 252000 | D4: =IF(Monthly!SummerCoverage="Yes",((Monthly!StudentsServed*Year2RetRate)*PctIncentive*IncentiveValue*8)+((Monthly!StudentsServed*Year2RetRate*SummerEnrollMonth)*SumPctIncentive*IncentiveValue*3),((Monthly!StudentsServed*Year2RetRate)*PctIncentive*IncentiveValue*8)) -> 87600 | E4: =SUM(IF(MlstnYr1="Annual",(Mlstn1Total*Year2RetRate),IF(MlstnYr1=2,Mlstn1Total,0)),IF(MlstnYr2="Annual",(Mlstn2Total*Year2RetRate),IF(MlstnYr2=2,Mlstn2Total,0)),IF(MlstnYr3="Annual",(Mlstn3Total*Year2RetRate),IF(MlstnYr3=2,Mlstn3Total,0)),IF(MlstnYr4="Annual",(Mlstn4Total*Year2RetRate),IF(MlstnYr4=2,Mlstn4Total,0)),IF(MlstnYr5="Annual",(Mlstn5Total*Year2RetRate),IF(MlstnYr5=2,Mlstn5Total,0))) -> 0 | F4: ='Success Coaching-Advising'!E22 -> 96000 | G4: =SUM(IF(Other!OtherYr1="Annual",IF(Other!Other1Type="Total",Other!Other1Amt,(Other!Other1Total*Year2RetRate)),IF(Other!OtherYr1=2,Other!Other1Total,0)),IF(Other!OtherYr2="Annual",IF(Other!Other2Type="Total",Other!Other2Cost,(Other!Other2Total*Year2RetRate)),IF(Other!OtherYr2=2,Other!Other2Total,0)),IF(Other!OtherYr3="Annual",IF(Other!Other3Type="Total",Other!Other3Cost,(Other!Other3Total*Year2RetRate)),IF(Other!OtherYr3=2,Other!Other3Total,0)),IF(Other!OtherYr4="Annual",IF(Other!Other4Type="Total",Other!Other4Cost,(Other!Other4Total*Year2RetRate)),IF(Other!OtherYr4=2,Other!Other4Total,0)),IF(Other!OtherYr5="Annual",IF(Other!Other5Type="Total",Other!Other5Cost,(Other!Other5Total*Year2RetRate)),IF(Other!OtherYr5=2,Other!Other5Total,0))) -> 0
A5: Year 3 | B5: =IF(FeesCovered="Yes",IF(SummerCoverage2="Yes",(((StudentsServed2*Year3RetRate)*Tuition)*2)+(SummerEnroll*(StudentsServed2*Year3RetRate)*SummerTuition)+(((StudentsServed2*Year3RetRate)*Fees)*2)+((StudentsServed2*Year3RetRate)*SummerEnroll*Fees),(((StudentsServed2*Year3RetRate)*Tuition)*2)+(((StudentsServed2*Year3RetRate)*Fees)*2)),IF(SummerCoverage2="Yes",(((StudentsServed2*Year3RetRate)*Tuition)*2)+(SummerEnroll*(StudentsServed2*Year3RetRate)*SummerTuition),(((StudentsServed2*Year3RetRate)*Tuition)*2))) -> 825000 | C5: =IF(Textbook!SummerCoverage="Yes",(((Textbook!StudentsServed*Year3RetRate)*SemBookCost)*2)+(SummerBookCost*(Textbook!StudentsServed*Year3RetRate*SummerEnrollText)),((Textbook!StudentsServed*Year3RetRate)*SemBookCost*2)) -> 210000 | D5: =IF(Monthly!SummerCoverage="Yes",((Monthly!StudentsServed*Year3RetRate)*PctIncentive*IncentiveValue*8)+((Monthly!StudentsServed*Year3RetRate*SummerEnrollMonth)*SumPctIncentive*IncentiveValue*3),((Monthly!StudentsServed*Year3RetRate)*PctIncentive*IncentiveValue*8)) -> 73000 | E5: =SUM(IF(MlstnYr1="Annual",(Mlstn1Total*Year3RetRate),IF(MlstnYr1=3,Mlstn1Total,0)),IF(MlstnYr2="Annual",(Mlstn2Total*Year3RetRate),IF(MlstnYr2=3,Mlstn2Total,0)),IF(MlstnYr3="Annual",(Mlstn3Total*Year3RetRate),IF(MlstnYr3=3,Mlstn3Total,0)),IF(MlstnYr4="Annual",(Mlstn4Total*Year3RetRate),IF(MlstnYr4=3,Mlstn4Total,0)),IF(MlstnYr5="Annual",(Mlstn5Total*Year3RetRate),IF(MlstnYr5=3,Mlstn5Total,0))) -> 0 | F5: ='Success Coaching-Advising'!E28 -> 96000 | G5: =SUM(IF(Other!OtherYr1="Annual",IF(Other!Other1Type="Total",Other!Other1Amt,(Other!Other1Total*Year3RetRate)),IF(Other!OtherYr1=3,Other!Other1Total,0)),IF(Other!OtherYr2="Annual",IF(Other!Other2Type="Total",Other!Other2Cost,(Other!Other2Total*Year3RetRate)),IF(Other!OtherYr2=3,Other!Other2Total,0)),IF(Other!OtherYr3="Annual",IF(Other!Other3Type="Total",Other!Other3Cost,(Other!Other3Total*Year3RetRate)),IF(Other!OtherYr3=3,Other!Other3Total,0)),IF(Other!OtherYr4="Annual",IF(Other!Other4Type="Total",Other!Other4Cost,(Other!Other4Total*Year3RetRate)),IF(Other!OtherYr4=3,Other!Other4Total,0)),IF(Other!OtherYr5="Annual",IF(Other!Other5Type="Total",Other!Other5Cost,(Other!Other5Total*Year3RetRate)),IF(Other!OtherYr5=3,Other!Other5Total,0))) -> 0
A6: Total | B6: =IF('Program Information'!$J30=1,B3,IF('Program Information'!$J30=2,SUM(B3,B4),SUM(B3,B4,B5))) -> 3465000 | C6: =IF('Program Information'!$J30=1,C3,IF('Program Information'!$J30=2,SUM(C3,C4),SUM(C3,C4,C5))) -> 882000 | D6: =IF('Program Information'!$J30=1,D3,IF('Program Information'!$J30=2,SUM(D3,D4),SUM(D3,D4,D5))) -> 306600 | E6: =IF('Program Information'!$J30=1,E3,IF('Program Information'!$J30=2,SUM(E3,E4),SUM(E3,E4,E5))) -> 0 | F6: =IF('Program Information'!$J30=1,F3,IF('Program Information'!$J30=2,SUM(F3,F4),SUM(F3,F4,F5))) -> 336000 | G6: =IF('Program Information'!$J30=1,G3,IF('Program Information'!$J30=2,SUM(G3,G4),SUM(G3,G4,G5))) -> 0

Sheet Links
A1: Tuition | B1: TRUE
A2: Textbook | B2: TRUE
A3: Monthly | B3: TRUE
A4: Milestone | B4: TRUE
A5: Coaching | B5: TRUE

Sheet DataValidation
A1: Students | B1: Incentive | C1: Percentage | D1: Coach-to-student ratio | E1: Credits | F1: Yes/No | G1: Milestone year | H1: Coach/Advisor Salary | I1: Tuition | J1: Cost type | L1: =IF(Year2RetRate=0,"ZERO",IF(Year2RetRate=0.05,"FIVE",IF(Year2RetRate=0.1,"TEN",IF(Year2RetRate=0.15,"FIFTEEN",IF(Year2RetRate=0.2,"TWENTY",IF(Year2RetRate=0.25,"TWENTYFIVE",IF(Year2RetRate=0.3,"THIRTY",IF(Year2RetRate=0.35,"THIRTYFIVE",IF(Year2RetRate=0.4,"FORTY",IF(Year2RetRate=0.45,"FORTYFIVE",IF(Year2RetRate=0.5,"FIFTY",IF(Year2RetRate=0.55,"FIFTYFIVE",IF(Year2RetRate=0.6,"SIXTY",IF(Year2RetRate=0.65,"SIXTYFIVE",IF(Year2RetRate=0.7,"SEVENTY",IF(Year2RetRate=0.75,"SEVENTYFIVE",IF(Year2RetRate=0.8,"EIGHTY",IF(Year2RetRate=0.85,"EIGHTYFIVE",IF(Year2RetRate=0.9,"NINETY",IF(Year2RetRate=0.95,"NINETYFIVE",IF(Year2RetRate=1,"HUNDRED","N/A"))))))))))))))))))))) -> SIXTY | M1: 0% | N1: 5% | O1: 10% | P1: 15% | Q1: 20% | R1: 25% | S1: 30% | T1: 35% | U1: 40% | V1: 45% | W1: 50% | X1: 55% | Y1: 60% | Z1: 65% | AA1: 70% | AB1: 75% | AC1: 80% | AD1: 85% | AE1: 90% | AF1: 95% | AG1: 100%
A2: 0 | B2: 0 | C2: 0 | D2: 1 : 50 | F2: Yes | G2: Annual | H2: 0 | I2: 0 | J2: Total | M2: 0 | N2: 0 | O2: 0 | P2: 0 | Q2: 0 | R2: 0 | S2: 0 | T2: 0 | U2: 0 | V2: 0 | W2: 0 | X2: 0 | Y2: 0 | Z2: 0 | AA2: 0 | AB2: 0 | AC2: 0 | AD2: 0 | AE2: 0 | AF2: 0 | AG2: 0
A3: 50 | B3: 25 | C3: 0.05 | D3: 1 : 75 | E3: 0 | F3: No | G3: 1 | H3: 5000 | I3: 250 | J3: Per Student | N3: 0.05 | O3: 0.05 | P3: 0.05 | Q3: 0.05 | R3: 0.05 | S3: 0.05 | T3: 0.05 | U3: 0.05 | V3: 0.05 | W3: 0.05 | X3: 0.05 | Y3: 0.05 | Z3: 0.05 | AA3: 0.05 | AB3: 0.05 | AC3: 0.05 | AD3: 0.05 | AE3: 0.05 | AF3: 0.05 | AG3: 0.05
A4: 100 | B4: 50 | C4: 0.1 | D4: 1 : 100 | E4: 1 | G4: 2 | H4: 10000 | I4: 500 | O4: 0.1 | P4: 0.1 | Q4: 0.1 | R4: 0.1 | S4: 0.1 | T4: 0.1 | U4: 0.1 | V4: 0.1 | W4: 0.1 | X4: 0.1 | Y4: 0.1 | Z4: 0.1 | AA4: 0.1 | AB4: 0.1 | AC4: 0.1 | AD4: 0.1 | AE4: 0.1 | AF4: 0.1 | AG4: 0.1
A5: 150 | B5: 75 | C5: 0.15 | D5: 1 : 125 | E5: 2 | G5: 3 | H5: 15000 | I5: 750 | P5: 0.15 | Q5: 0.15 | R5: 0.15 | S5: 0.15 | T5: 0.15 | U5: 0.15 | V5: 0.15 | W5: 0.15 | X5: 0.15 | Y5: 0.15 | Z5: 0.15 | AA5: 0.15 | AB5: 0.15 | AC5: 0.15 | AD5: 0.15 | AE5: 0.15 | AF5: 0.15 | AG5: 0.15
A6: 200 | B6: 100 | C6: 0.2 | D6: 1 : 150 | E6: 3 | H6: 20000 | I6: 1000 | Q6: 0.2 | R6: 0.2 | S6: 0.2 | T6: 0.2 | U6: 0.2 | V6: 0.2 | W6: 0.2 | X6: 0.2 | Y6: 0.2 | Z6: 0.2 | AA6: 0.2 | AB6: 0.2 | AC6: 0.2 | AD6: 0.2 | AE6: 0.2 | AF6: 0.2 | AG6: 0.2
A7: 250 | B7: 125 | C7: 0.25 | D7: 1 : 200 | E7: 4 | H7: 25000 | I7: 1250 | R7: 0.25 | S7: 0.25 | T7: 0.25 | U7: 0.25 | V7: 0.25 | W7: 0.25 | X7: 0.25 | Y7: 0.25 | Z7: 0.25 | AA7: 0.25 | AB7: 0.25 | AC7: 0.25 | AD7: 0.25 | AE7: 0.25 | AF7: 0.25 | AG7: 0.25
A8: 300 | B8: 150 | C8: 0.3 | D8: 1 : 300 | E8: 5 | H8: 30000 | I8: 1500 | S8: 0.3 | T8: 0.3 | U8: 0.3 | V8: 0.3 | W8: 0.3 | X8: 0.3 | Y8: 0.3 | Z8: 0.3 | AA8: 0.3 | AB8: 0.3 | AC8: 0.3 | AD8: 0.3 | AE8: 0.3 | AF8: 0.3 | AG8: 0.3
A9: 350 | B9: 175 | C9: 0.35 | D9: 1 : 400 | E9: 6 | H9: 35000 | I9: 1750 | T9: 0.35 | U9: 0.35 | V9: 0.35 | W9: 0.35 | X9: 0.35 | Y9: 0.35 | Z9: 0.35 | AA9: 0.35 | AB9: 0.35 | AC9: 0.35 | AD9: 0.35 | AE9: 0.35 | AF9: 0.35 | AG9: 0.35
A10: 400 | B10: 200 | C10: 0.4 | D10: 1 : 500 | E10: 7 | H10: 40000 | I10: 2000 | U10: 0.4 | V10: 0.4 | W10: 0.4 | X10: 0.4 | Y10: 0.4 | Z10: 0.4 | AA10: 0.4 | AB10: 0.4 | AC10: 0.4 | AD10: 0.4 | AE10: 0.4 | AF10: 0.4 | AG10: 0.4
A11: 450 | B11: 225 | C11: 0.45 | D11: 1 : 600 | E11: 8 | H11: 45000 | I11: 2250 | V11: 0.45 | W11: 0.45 | X11: 0.45 | Y11: 0.45 | Z11: 0.45 | AA11: 0.45 | AB11: 0.45 | AC11: 0.45 | AD11: 0.45 | AE11: 0.45 | AF11: 0.45 | AG11: 0.45
A12: 500 | B12: 250 | C12: 0.5 | D12: 1 : 700 | E12: 9 | H12: 50000 | I12: 2500 | W12: 0.5 | X12: 0.5 | Y12: 0.5 | Z12: 0.5 | AA12: 0.5 | AB12: 0.5 | AC12: 0.5 | AD12: 0.5 | AE12: 0.5 | AF12: 0.5 | AG12: 0.5
A13: 550 | B13: 275 | C13: 0.55 | D13: 1 : 800 | E13: 10 | H13: 55000 | X13: 0.55 | Y13: 0.55 | Z13: 0.55 | AA13: 0.55 | AB13: 0.55 | AC13: 0.55 | AD13: 0.55 | AE13: 0.55 | AF13: 0.55 | AG13: 0.55
A14: 600 | B14: 300 | C14: 0.6 | E14: 11 | H14: 60000 | Y14: 0.6 | Z14: 0.6 | AA14: 0.6 | AB14: 0.6 | AC14: 0.6 | AD14: 0.6 | AE14: 0.6 | AF14: 0.6 | AG14: 0.6
A15: 650 | B15: 325 | C15: 0.65 | E15: 12 | H15: 65000 | Z15: 0.65 | AA15: 0.65 | AB15: 0.65 | AC15: 0.65 | AD15: 0.65 | AE15: 0.65 | AF15: 0.65 | AG15: 0.65
A16: 700 | B16: 350 | C16: 0.7 | E16: 13 | H16: 70000 | AA16: 0.7 | AB16: 0.7 | AC16: 0.7 | AD16: 0.7 | AE16: 0.7 | AF16: 0.7 | AG16: 0.7
A17: 750 | B17: 375 | C17: 0.75 | E17: 14 | H17: 75000 | AB17: 0.75 | AC17: 0.75 | AD17: 0.75 | AE17: 0.75 | AF17: 0.75 | AG17: 0.75
A18: 800 | B18: 400 | C18: 0.8 | E18: 15 | H18: 80000 | AC18: 0.8 | AD18: 0.8 | AE18: 0.8 | AF18: 0.8 | AG18: 0.8
A19: 850 | B19: 425 | C19: 0.85 | H19: 85000 | AD19: 0.85 | AE19: 0.85 | AF19: 0.85 | AG19: 0.85
A20: 900 | B20: 450 | C20: 0.9 | H20: 90000 | AE20: 0.9 | AF20: 0.9 | AG20: 0.9
A21: 950 | B21: 475 | C21: 0.95 | AF21: 0.95 | AG21: 0.95
A22: 1000 | B22: 500 | C22: 1 | AG22: 1
A23: 1050
A24: 1100
